fUST/lending_fUST_20250511
["ID","MTS","AMOUNT","RATE_DAILY","PERIOD"]
[360740522,1746960646202,-400.0,8.85e-05,2]
[360740523,1746960646212,-400.0,9.122e-05,2]
[360740524,1746960646221,-400.0,9.122e-05,2]
[360740526,1746960646231,-400.0,9.122e-05,2]
[360740528,1746960646241,-400.0,9.122e-05,2]
[360740530,1746960646250,-400.0,9.122e-05,2]
[360740532,1746960646259,-400.0,9.122e-05,2]
[360740534,1746960646268,-400.0,9.122e-05,2]
[360740536,1746960646278,-548.19,9.122e-05,2]
[360740537,1746960646287,-400.0,9.122e-05,2]
[360740539,1746960646296,-424.84874093,9.122e-05,2]
[360740541,1746960646305,-461.24,9.122e-05,2]
[360740543,1746960646315,-400.0,9.122e-05,2]
[360740545,1746960646325,-400.0,9.122e-05,2]
[360740548,1746960646334,-400.0,9.122e-05,2]
[360740550,1746960646344,-400.0,9.122e-05,2]
[360740552,1746960646354,-400.0,9.122e-05,2]
[360740554,1746960646363,-400.0,9.122e-05,2]
[360740555,1746960646372,-400.0,9.122e-05,2]
[360740558,1746960646382,-400.0,9.122e-05,2]
[360740560,1746960646392,-400.0,9.122e-05,2]
[360740561,1746960646402,-400.0,9.122e-05,2]
[360740564,1746960646417,-400.0,9.123e-05,2]
[360740566,1746960646427,-400.0,9.123e-05,2]
[360740568,1746960646436,-400.0,9.123e-05,2]
[360740570,1746960646446,-400.0,9.123e-05,2]
[360740572,1746960646455,-351.93016283,9.123e-05,2]
[360740574,1746960646465,-400.0,9.123e-05,2]
[360740576,1746960646475,-400.0,9.123e-05,2]
[360740578,1746960646484,-400.0,9.123e-05,2]
[360740581,1746960646497,-635.76,9.123e-05,2]
[360740583,1746960646507,-400.0,9.123e-05,2]
[360740585,1746960646516,-456.66,9.123e-05,2]
[360740587,1746960646526,-400.0,9.123e-05,2]
[360740589,1746960646535,-400.0,9.123e-05,2]
[360740591,1746960646546,-400.0,9.123e-05,2]
[360740593,1746960646555,-400.0,9.123e-05,2]
[360740595,1746960646565,-457.41,9.123e-05,2]
[360740597,1746960646574,-400.0,9.124e-05,2]
[360740599,1746960646584,-400.0,9.124e-05,2]
[360740601,1746960646593,-170.83790795,9.124e-05,2]
[360740603,1746960646602,-400.0,9.124e-05,2]
[360740605,1746960646611,-400.0,9.124e-05,2]
[360740607,1746960646621,-400.0,9.124e-05,2]
[360740609,1746960646630,-400.0,9.396e-05,2]
[360740611,1746960646639,-400.0,9.396e-05,2]
[360740613,1746960646649,-400.0,9.396e-05,2]
[360740615,1746960646658,-400.0,9.396e-05,2]
[360740617,1746960646667,-400.0,9.396e-05,2]
[360740619,1746960646677,-400.0,9.396e-05,2]
[360740621,1746960646687,-400.0,9.396e-05,2]
[360740623,1746960646696,-548.19,9.396e-05,2]
[360740625,1746960646706,-400.0,9.396e-05,2]
[360740627,1746960646715,-461.24,9.396e-05,2]
[360740629,1746960646724,-400.0,9.396e-05,2]
[360740631,1746960646733,-400.0,9.396e-05,2]
[360740633,1746960646743,-400.0,9.396e-05,2]
[360740635,1746960646752,-428.2,9.396e-05,2]
[360740637,1746960646762,-167.35003575,9.396e-05,2]
[360740639,1746960646772,-400.0,9.396e-05,2]
[360740641,1746960646782,-400.0,9.396e-05,2]
[360740643,1746960646792,-400.0,9.396e-05,2]
[360740645,1746960646801,-254.30088659,9.396e-05,2]
[360740647,1746960646811,-400.0,9.396e-05,2]
[360740649,1746960646820,-400.0,9.397e-05,2]
[360740651,1746960646829,-400.0,9.397e-05,2]
[360740653,1746960646838,-400.0,9.397e-05,2]
[360740655,1746960646847,-400.0,9.397e-05,2]
[360740657,1746960646857,-400.0,9.397e-05,2]
[360740659,1746960646866,-44.29933497,9.397e-05,2]
[360740943,1746961109408,10000.0,0.00022,120]
[360740945,1746961201464,159.010617,0.00022,30]
[360740957,1746961568212,250.0,0.00022,30]
[360740968,1746961726590,1000.0,0.00022,30]
[360740969,1746961728627,1000.0,0.00022,31]
[360740970,1746961730785,1000.0,0.00022,33]
[360740971,1746961732718,1000.0,0.00022,35]
[360741003,1746961832049,-500.0,8.337e-05,2]
[360741005,1746961832059,-250.48907627,8.337e-05,2]
[360741007,1746961832068,-19663.20569067,8.341e-05,2]
[360741405,1746961837917,-3893.20388223,8.341e-05,2]
[360741408,1746961837928,-250.0,8.412e-05,2]
[360741410,1746961837938,-400.0,9.122e-05,2]
[360741412,1746961837947,-525.96336403,9.122e-05,2]
[360741414,1746961837957,-400.0,9.122e-05,2]
[360741416,1746961837966,-400.0,9.395e-05,2]
[360741418,1746961837976,-400.0,9.395e-05,2]
[360741420,1746961837985,-400.0,9.395e-05,2]
[360741422,1746961837994,-400.0,9.395e-05,2]
[360741424,1746961838003,-400.0,9.395e-05,2]
[360741426,1746961838013,-400.0,9.395e-05,2]
[360741428,1746961838022,-400.0,9.395e-05,2]
[360741430,1746961838031,-400.0,9.395e-05,2]
[360741432,1746961838041,-400.0,9.395e-05,2]
[360741434,1746961838050,-322.00087963,9.395e-05,2]
[360741436,1746961838060,-168.04454814,9.395e-05,2]
[360741438,1746961838070,-400.0,9.395e-05,2]
[360741440,1746961838079,-400.0,9.395e-05,2]
[360741442,1746961838088,-609.27,9.395e-05,2]
[360741444,1746961838098,-400.0,9.395e-05,2]
[360741446,1746961838107,-400.0,9.395e-05,2]
[360741448,1746961838116,-437.63,9.395e-05,2]
[360741450,1746961838127,-400.0,9.395e-05,2]
[360741452,1746961838137,-400.0,9.395e-05,2]
[360741454,1746961838147,-400.0,9.395e-05,2]
[360741456,1746961838155,-400.0,9.395e-05,2]
[360741458,1746961838165,-400.0,9.395e-05,2]
[360741460,1746961838174,-502.51,9.395e-05,2]
[360741462,1746961838183,-400.0,9.395e-05,2]
[360741464,1746961838192,-422.8,9.395e-05,2]
[360741466,1746961838201,-400.0,9.395e-05,2]
[360741468,1746961838210,-400.0,9.395e-05,2]
[360741470,1746961838219,-400.0,9.395e-05,2]
[360741472,1746961838229,-20.21380497,9.395e-05,2]
[360741475,1746961838241,-379.78619503,9.395e-05,2]
[360741476,1746961838250,-268.22316889,9.395e-05,2]
[360741478,1746961838259,-505.26798682,9.395e-05,2]
[360741480,1746961838268,-438.35,9.395e-05,2]
[360741482,1746961838278,-104.38847849,9.395e-05,2]
[360741485,1746961838289,-295.61152151,9.395e-05,2]
[360741487,1746961838302,-36.32413557,9.396e-05,2]
[360741691,1746961840286,-400.0,9.395e-05,2]
[360741693,1746961840297,-278.67393402,9.396e-05,2]
[360742285,1746961846244,-400.0,9.395e-05,2]
[360742287,1746961846255,-161.21875642,9.396e-05,2]
[360742289,1746961846264,-400.0,9.396e-05,2]
[360742291,1746961846274,-12621.47167665,9.446e-05,2]
[360742293,1746961846283,-160.0,9.446e-05,2]
[360742295,1746961846293,-422.1676983,9.446e-05,2]
[360742297,1746961846303,-160.0,9.446e-05,2]
[360742299,1746961846312,-160.0,9.446e-05,2]
[360742301,1746961846322,-160.0,9.446e-05,2]
[360742303,1746961846332,-212.1539542,9.446e-05,2]
[360742305,1746961846341,-997.71092301,9.446e-05,2]
[360742307,1746961846350,-180.404,9.446e-05,2]
[360742309,1746961846360,-400.0,9.669e-05,2]
[360742311,1746961846369,-400.0,9.669e-05,2]
[360742313,1746961846379,-400.0,9.669e-05,2]
[360742315,1746961846388,-400.0,9.669e-05,2]
[360742317,1746961846397,-400.0,9.669e-05,2]
[360742319,1746961846407,-400.0,9.669e-05,2]
[360742321,1746961846416,-400.0,9.669e-05,2]
[360742323,1746961846426,-400.0,9.669e-05,2]
[360742325,1746961846435,-609.27,9.669e-05,2]
[360742327,1746961846444,-400.0,9.669e-05,2]
[360742329,1746961846454,-400.0,9.669e-05,2]
[360742331,1746961846465,-437.63,9.669e-05,2]
[360742333,1746961846474,-400.0,9.669e-05,2]
[360742335,1746961846483,-400.0,9.669e-05,2]
[360742337,1746961846492,-400.0,9.669e-05,2]
[360742339,1746961846502,-400.0,9.669e-05,2]
[360742341,1746961846512,-400.0,9.669e-05,2]
[360742343,1746961846521,-502.51,9.669e-05,2]
[360742345,1746961846534,-323.70819532,9.669e-05,2]
[360742347,1746961846544,-422.8,9.669e-05,2]
[360742349,1746961846553,-400.0,9.669e-05,2]
[360742351,1746961846563,-400.0,9.669e-05,2]
[360742353,1746961846573,-206.40226996,9.669e-05,2]
[360742355,1746961846582,-400.0,9.669e-05,2]
[360742357,1746961846591,-438.35,9.669e-05,2]
[360742359,1746961846601,-400.0,9.669e-05,2]
[360742361,1746961846611,-400.0,9.669e-05,2]
[360742363,1746961846620,-400.0,9.669e-05,2]
[360742365,1746961846632,-400.0,9.67e-05,2]
[360742367,1746961846642,-652.49990956,9.818e-05,2]
[360742369,1746961846651,-652.49990956,9.908e-05,2]
[360742371,1746961846660,-323.09579708,9.943e-05,2]
[360742373,1746961846670,-400.0,9.943e-05,2]
[360742375,1746961846679,-400.0,9.943e-05,2]
[360742377,1746961846688,-400.0,9.943e-05,2]
[360742379,1746961846698,-400.0,9.943e-05,2]
[360742381,1746961846707,-400.0,9.943e-05,2]
[360742383,1746961846716,-400.0,9.943e-05,2]
[360742385,1746961846725,-400.0,9.943e-05,2]
[360742387,1746961846734,-609.27,9.943e-05,2]
[360742389,1746961846743,-400.0,9.943e-05,2]
[360742391,1746961846752,-271.93675025,9.943e-05,2]
[360742393,1746961846762,-437.63,9.943e-05,2]
[360742395,1746961846771,-400.0,9.943e-05,2]
[360742398,1746961846790,-400.0,9.943e-05,2]
[360742400,1746961846801,-400.0,9.943e-05,2]
[360742402,1746961846810,-400.0,9.943e-05,2]
[360742404,1746961846820,-400.0,9.943e-05,2]
[360742406,1746961846832,-502.51,9.943e-05,2]
[360742408,1746961846842,-422.8,9.943e-05,2]
[360742410,1746961846852,-400.0,9.943e-05,2]
[360742412,1746961846862,-400.0,9.943e-05,2]
[360742414,1746961846871,-400.0,9.943e-05,2]
[360742416,1746961846881,-438.35,9.943e-05,2]
[360742418,1746961846891,-400.0,9.943e-05,2]
[360742420,1746961846901,-400.0,9.943e-05,2]
[360742422,1746961846911,-400.0,9.943e-05,2]
[360742424,1746961846920,-495.97631988,9.944e-05,2]
[360742426,1746961846930,-759.60280608,9.959e-05,2]
[360742429,1746961846939,-15033.54734894,0.0001,2]
[360742431,1746961846951,-15033.54734867,0.0001,2]
[360742433,1746961846961,-15033.54734867,0.00010159,2]
[360742435,1746961846971,-652.49990956,0.00010206,2]
[360742437,1746961846981,-400.0,0.00010217,2]
[360742439,1746961846990,-400.0,0.00010217,2]
[360742441,1746961847000,-400.0,0.00010217,2]
[360742443,1746961847011,-535.08533661,0.00010217,2]
[360742445,1746961847021,-400.0,0.00010217,2]
[360742447,1746961847031,-400.0,0.00010217,2]
[360742449,1746961847040,-400.0,0.00010217,2]
[360742451,1746961847050,-609.27,0.00010217,2]
[360742453,1746961847060,-400.0,0.00010217,2]
[360742455,1746961847069,-437.63,0.00010217,2]
[360742457,1746961847079,-400.0,0.00010217,2]
[360742459,1746961847089,-400.0,0.00010217,2]
[360742461,1746961847098,-400.0,0.00010217,2]
[360742463,1746961847108,-400.0,0.00010217,2]
[360742465,1746961847117,-400.0,0.00010217,2]
[360742467,1746961847127,-502.51,0.00010217,2]
[360742469,1746961847137,-422.8,0.00010217,2]
[360742471,1746961847146,-400.0,0.00010217,2]
[360742473,1746961847155,-400.0,0.00010217,2]
[360742475,1746961847166,-400.0,0.00010217,2]
[360742477,1746961847175,-438.35,0.00010217,2]
[360742479,1746961847184,-400.0,0.00010217,2]
[360742481,1746961847194,-400.0,0.00010217,2]
[360742483,1746961847203,-400.0,0.00010217,2]
[360742485,1746961847212,-313.76143235,0.0001028,2]
[360742487,1746961847222,-400.0,0.00010491,2]
[360742489,1746961847231,-420.00644796,0.00010491,2]
[360742491,1746961847240,-400.0,0.00010491,2]
[360742493,1746961847250,-400.0,0.00010491,2]
[360742495,1746961847260,-249.90849067,0.00010491,2]
[360742497,1746961847269,-400.0,0.00010491,2]
[360742499,1746961847279,-609.27,0.00010491,2]
[360742501,1746961847288,-400.0,0.00010491,2]
[360742503,1746961847298,-437.63,0.00010491,2]
[360742505,1746961847307,-400.0,0.00010491,2]
[360742507,1746961847317,-400.0,0.00010491,2]
[360742509,1746961847326,-400.0,0.00010491,2]
[360742511,1746961847335,-522.35033122,0.00010491,2]
[360742513,1746961847345,-386.99,0.00010491,2]
[360742515,1746961847354,-502.51,0.00010491,2]
[360742517,1746961847364,-422.8,0.00010491,2]
[360742519,1746961847373,-400.0,0.00010491,2]
[360742521,1746961847383,-48.6999949,0.00010491,2]
[360742523,1746961847438,-351.3000051,0.00010491,2]
[360742525,1746961847448,-400.0,0.00010491,2]
[360742529,1746961847458,-151.0,0.00010491,2]
[360742531,1746961847467,-145.99845594,0.00010491,2]
[360742534,1746961847486,-292.35154406,0.00010491,2]
[360742536,1746961847496,-151.0,0.00010491,2]
[360742538,1746961847506,-151.0,0.00010491,2]
[360742540,1746961847516,-151.0,0.00010491,2]
[360742542,1746961847526,-151.0,0.00010491,2]
[360742544,1746961847538,-400.0,0.00010491,2]
[360742546,1746961847548,-400.0,0.00010491,2]
[360742548,1746961847559,-151.0,0.00010491,2]
[360742550,1746961847569,-400.0,0.00010491,2]
[360742552,1746961847578,-152.345025,0.00010624,2]
[360742554,1746961847588,-151.0,0.00010624,2]
[360742556,1746961847597,-345.059759,0.00010624,2]
[360742558,1746961847606,-345.059759,0.00010624,2]
[360742560,1746961847616,-151.0,0.00010624,2]
[360742562,1746961847626,-151.0,0.00010624,2]
[360742564,1746961847635,-652.49990956,0.00010651,2]
[360742566,1746961847644,-400.0,0.00010765,2]
[360742568,1746961847654,-400.0,0.00010765,2]
[360742570,1746961847663,-165.68,0.00010765,2]
[360742572,1746961847672,-444.15435599,0.00010765,2]
[360742574,1746961847682,-609.27,0.00010765,2]
[360742576,1746961847691,-400.0,0.00010765,2]
[360742578,1746961847701,-437.63,0.00010765,2]
[360742581,1746961847711,-495.35746878,0.00010765,2]
[360742583,1746961847721,-400.0,0.00010765,2]
[360742585,1746961847730,-400.0,0.00010765,2]
[360742587,1746961847740,-502.51,0.00010765,2]
[360742589,1746961847750,-422.8,0.00010765,2]
[360742591,1746961847760,-538.96,0.00010765,2]
[360742593,1746961847770,-400.0,0.00010765,2]
[360742595,1746961847779,-400.0,0.00010765,2]
[360742597,1746961847789,-438.35,0.00010765,2]
[360742599,1746961847799,-177.33571244,0.00010765,2]
[360742601,1746961847808,-400.67264155,0.00010765,2]
[360742603,1746961847817,-83.21497059,0.00010765,2]
[360742606,1746961847831,-316.78502941,0.00010765,2]
[360742608,1746961847840,-151.0,0.00010766,2]
[360742609,1746961847850,-151.0,0.00010766,2]
[360742611,1746961847860,-151.0,0.00010766,2]
[360742613,1746961847869,-63.65824119,0.00010766,2]
[360743030,1746961890243,8179.0,0.00022,120]
[360743042,1746962299059,10000.0,0.00022,120]
[360743043,1746962375579,5000.0,0.00022,30]
[360743044,1746962401579,164.881744,0.00022,30]
[360743045,1746962701683,632.4918194,7.753e-05,2]
[360743052,1746962890351,400.0,0.00022,30]
[360743059,1746962921523,5000.46,0.00022,30]
[360743133,1746963032366,-300.0,8.335e-05,2]
[360743136,1746963032376,-310.0,8.335e-05,2]
[360743138,1746963032386,-212.72294679,8.335e-05,2]
[360743140,1746963032395,-391.207384,8.335e-05,2]
[360743142,1746963032404,-636.53007785,8.336e-05,2]
[360743144,1746963032413,-494.76422566,8.336e-05,2]
[360743146,1746963032422,-500.0,8.336e-05,2]
[360743148,1746963032432,-500.0,8.336e-05,2]
[360743150,1746963032442,-430.80094379,8.336e-05,2]
[360743151,1746963032453,-500.0,8.336e-05,2]
[360743153,1746963032462,-500.0,8.336e-05,2]
[360743156,1746963032471,-500.0,8.336e-05,2]
[360743158,1746963032481,-500.0,8.336e-05,2]
[360743160,1746963032490,-500.0,8.336e-05,2]
[360743162,1746963032500,-500.0,8.336e-05,2]
[360743164,1746963032510,-500.0,8.336e-05,2]
[360743166,1746963032520,-544.05233855,8.336e-05,2]
[360743168,1746963032530,-400.0,8.34e-05,2]
[360743169,1746963032539,-400.0,8.34e-05,2]
[360743172,1746963032549,-400.0,8.34e-05,2]
[360743174,1746963032558,-400.0,8.34e-05,2]
[360743176,1746963032568,-400.0,8.34e-05,2]
[360743178,1746963032577,-24900.0,8.341e-05,2]
[360743180,1746963032587,-400.0,8.614e-05,2]
[360743182,1746963032596,-400.0,8.614e-05,2]
[360743184,1746963032606,-400.0,8.614e-05,2]
[360743186,1746963032615,-400.0,8.614e-05,2]
[360743188,1746963032625,-400.0,8.614e-05,2]
[360743190,1746963032634,-2706.0,8.765e-05,2]
[360743192,1746963032644,-404.0,8.866e-05,2]
[360743194,1746963032653,-400.0,8.888e-05,2]
[360743196,1746963032662,-400.0,8.888e-05,2]
[360743198,1746963032672,-400.0,8.888e-05,2]
[360743200,1746963032682,-400.0,8.888e-05,2]
[360743202,1746963032692,-252.51,8.888e-05,2]
[360743204,1746963032701,-164.881744,9.041e-05,2]
[360743206,1746963032711,-400.0,9.162e-05,2]
[360743208,1746963032720,-400.0,9.162e-05,2]
[360743210,1746963032729,-400.0,9.162e-05,2]
[360743212,1746963032738,-400.0,9.162e-05,2]
[360743214,1746963032748,-400.0,9.395e-05,2]
[360743216,1746963032757,-400.0,9.395e-05,2]
[360743218,1746963032766,-400.0,9.436e-05,2]
[360743220,1746963032775,-400.0,9.436e-05,2]
[360743222,1746963032785,-400.0,9.436e-05,2]
[360743224,1746963032794,-400.0,9.436e-05,2]
[360743226,1746963032803,-160.0,9.444e-05,2]
[360743228,1746963032812,-400.0,9.669e-05,2]
[360743230,1746963032822,-400.0,9.669e-05,2]
[360743232,1746963032831,-400.0,9.71e-05,2]
[360743234,1746963032841,-400.0,9.71e-05,2]
[360743236,1746963032850,-400.0,9.71e-05,2]
[360743238,1746963032860,-400.0,9.71e-05,2]
[360743240,1746963032872,-179.842,9.943e-05,2]
[360743242,1746963032882,-400.0,9.943e-05,2]
[360743244,1746963032892,-400.0,9.943e-05,2]
[360743246,1746963032901,-400.0,9.984e-05,2]
[360743264,1746963033070,-400.0,9.984e-05,2]
[360743267,1746963033080,-400.0,9.984e-05,2]
[360743269,1746963033090,-400.0,9.984e-05,2]
[360743271,1746963033100,-209.17428824,9.984e-05,2]
[360743273,1746963033110,-400.0,9.999e-05,2]
[360743275,1746963033120,-400.0,9.999e-05,2]
[360743277,1746963033130,-400.0,9.999e-05,2]
[360743279,1746963033140,-456.95,9.999e-05,2]
[360743281,1746963033150,-400.0,9.999e-05,2]
[360743283,1746963033159,-400.0,9.999e-05,2]
[360743285,1746963033169,-400.0,9.999e-05,2]
[360743287,1746963033178,-400.0,9.999e-05,2]
[360743289,1746963033189,-13564.11675602,0.0001,2]
[360743291,1746963033199,-13564.11675589,0.0001,2]
[360743293,1746963033209,-13564.11675589,0.00010069,2]
[360743295,1746963033218,-153.0,0.00010178,2]
[360743297,1746963033229,-400.0,0.00010217,2]
[360743299,1746963033239,-400.0,0.00010217,2]
[360743301,1746963033249,-153.0,0.00010252,2]
[360743303,1746963033258,-470.75047426,0.00010258,2]
[360743305,1746963033268,-400.0,0.00010258,2]
[360743307,1746963033277,-22.26600999,0.00010258,2]
[360743765,1746963038065,-377.73399001,0.00010258,2]
[360743767,1746963038075,-400.0,0.00010258,2]
[360743769,1746963038085,-400.0,0.00010273,2]
[360743771,1746963038094,-400.0,0.00010273,2]
[360743773,1746963038105,-400.0,0.00010273,2]
[360743775,1746963038115,-456.95,0.00010273,2]
[360743777,1746963038125,-236.61941976,0.00010273,2]
[360743779,1746963038135,-400.0,0.00010273,2]
[360743781,1746963038152,-183.01,0.00010273,2]
[360743783,1746963038163,-196.4323706,0.00010273,2]
[360743785,1746963038175,-147.55425725,0.00010391,2]
[360743787,1746963038191,-1622.37254608,0.00010391,2]
[360743789,1746963038204,-151.0,0.00010491,2]
[360743791,1746963038214,-151.0,0.00010491,2]
[360743793,1746963038224,-400.0,0.00010491,2]
[360743795,1746963038233,-400.0,0.00010491,2]
[360743797,1746963038243,-400.0,0.00010532,2]
[360743798,1746963038253,-400.0,0.00010532,2]
[360743799,1746963038262,-400.0,0.00010532,2]
[360743800,1746963038271,-400.0,0.00010547,2]
[360743801,1746963038280,-392.55245405,0.00010547,2]
[360743802,1746963038292,-36.24504677,0.00010547,2]
[360743803,1746963038301,-400.0,0.00010547,2]
[360743805,1746963038310,-456.95,0.00010547,2]
[360743807,1746963038319,-400.0,0.00010547,2]
[360743809,1746963038328,-254.1641584,0.00010552,2]
[360743811,1746963038337,-607.68224488,0.00010651,2]
[360743813,1746963038347,-209.17428824,0.00010678,2]
[360743815,1746963038356,-997.71092301,0.00010749,2]
[360743817,1746963038366,-212.1539542,0.00010749,2]
[360743819,1746963038375,-160.0,0.00010749,2]
[360743821,1746963038384,-4297.77735344,0.00010749,2]
[360743823,1746963038396,-4140.47564121,0.00010749,2]
[360744055,1746963043179,-400.0,9.999e-05,2]
[360744056,1746963043189,-160.0,0.00010748,2]
[360744058,1746963043199,-4183.218682,0.00010749,2]
[360744060,1746963043209,-422.1676983,0.00010749,2]
[360744062,1746963043218,-2.6136197,0.00010765,2]
[360744070,1746963043286,-740.62718484,0.00010765,2]
[360744072,1746963043295,-400.0,0.00010765,2]
[360744075,1746963043313,-151.0,0.00010766,2]
[360744077,1746963043325,-13564.11675589,0.00010803,2]
[360744079,1746963043335,-404.32519873,0.00010806,2]
[360744081,1746963043345,-400.0,0.00010806,2]
[360744083,1746963043354,-400.0,0.00010806,2]
[360744084,1746963043364,-400.0,0.00010821,2]
[360744085,1746963043374,-400.0,0.00010821,2]
[360744086,1746963043384,-456.95,0.00010821,2]
[360744087,1746963043393,-400.0,0.00010821,2]
[360744088,1746963043403,-607.68224485,0.00010856,2]
[360744089,1746963043412,-2031.9205301,0.00010904,2]
[360744090,1746963043421,-188.0,0.00011,3]
[360744091,1746963043431,-188.74822128,0.00011,3]
[360744092,1746963043440,-156.0,0.00011,2]
[360744093,1746963043449,-152.050244,0.00011038,2]
[360744094,1746963043459,-151.0,0.00011038,2]
[360744095,1746963043468,-400.0,0.00011039,2]
[360744096,1746963043477,-607.68224485,0.00011062,2]
[360744097,1746963043487,-400.0,0.0001108,2]
[360744098,1746963043496,-400.0,0.0001108,2]
[360744099,1746963043505,-400.0,0.00011095,2]
[360744100,1746963043515,-400.0,0.00011095,2]
[360744101,1746963043524,-456.95,0.00011095,2]
[360744102,1746963043534,-400.0,0.00011095,2]
[360744103,1746963043543,-652.49990956,0.00011141,2]
[360744104,1746963043552,-154.9625159,0.0001116,2]
[360744106,1746963043565,-880.85880084,0.0001116,2]
[360744108,1746963043575,-500.0,0.00011228,2]
[360744110,1746963043585,-607.68224485,0.00011267,2]
[360744112,1746963043595,-151.0,0.000113,2]
[360744113,1746963043604,-151.0,0.00011311,2]
[360744114,1746963043614,-151.0,0.00011311,2]
[360744115,1746963043624,-152.890704,0.00011311,2]
[360744116,1746963043633,-151.0,0.00011311,2]
[360744117,1746963043643,-171.517547,0.00011311,2]
[360744118,1746963043653,-151.0,0.00011311,2]
[360744119,1746963043662,-151.0,0.00011311,2]
[360744120,1746963043671,-151.0,0.00011311,2]
[360744121,1746963043681,-151.0,0.00011311,2]
[360744122,1746963043690,-151.316364,0.00011311,2]
[360744123,1746963043700,-151.0,0.00011311,2]
[360744124,1746963043710,-151.0,0.00011311,2]
[360744125,1746963043719,-151.0,0.00011311,2]
[360744126,1746963043729,-163.267834,0.00011311,2]
[360744127,1746963043738,-265.23133,0.00011311,2]
[360744128,1746963043748,-265.23133,0.00011311,2]
[360744129,1746963043757,-360.0,0.00011311,2]
[360744130,1746963043767,-360.0,0.00011311,2]
[360744131,1746963043777,-310.553784,0.00011311,2]
[360744132,1746963043786,-310.553784,0.00011311,2]
[360744133,1746963043796,-151.0,0.00011311,2]
[360744134,1746963043806,-151.0,0.00011311,2]
[360744135,1746963043815,-268.989464,0.00011311,2]
[360744136,1746963043827,-158.919176,0.00011311,2]
[360744137,1746963043837,-268.989464,0.00011311,2]
[360744138,1746963043846,-400.0,0.00011313,2]
[360744139,1746963043855,-400.0,0.00011354,2]
[360744140,1746963043865,-400.0,0.00011354,2]
[360744141,1746963043879,-400.0,0.00011369,2]
[360744142,1746963043889,-400.0,0.00011369,2]
[360744143,1746963043900,-456.95,0.00011369,2]
[360744144,1746963043911,-400.0,0.00011369,2]
[360744145,1746963043920,-151.0,0.000114,2]
[360744146,1746963043930,-607.68224485,0.00011472,2]
[360744147,1746963043940,-209.17428824,0.00011472,2]
[360744148,1746963043956,-164.881744,0.00011481,2]
[360744149,1746963043966,-151.0,0.000115,2]
[360744150,1746963043976,-151.0,0.000115,2]
[360744151,1746963043986,-151.0,0.000115,2]
[360744152,1746963043996,-151.0,0.000115,2]
[360744153,1746963044007,-652.49990956,0.00011503,2]
[360744154,1746963044016,-605.48489965,0.0001152,2]
[360744155,1746963044028,-13564.11675589,0.00011538,2]
[360744156,1746963044038,-187264.10468326,0.00011571,3]
[360744157,1746963044050,-720725.95443073,0.00011571,2]
[360744158,1746963044064,-162010.34871205,0.00011571,2]
[360744159,1746963044074,-226.080911,0.00011572,2]
[360744160,1746963044083,-162.94943,0.00011572,2]
[360744161,1746963044094,-151.0,0.00011572,2]
[360744162,1746963044104,-265.23133,0.00011572,2]
[360744163,1746963044115,-265.23133,0.00011572,2]
[360744164,1746963044125,-360.0,0.00011572,2]
[360744165,1746963044135,-360.0,0.00011572,2]
[360744166,1746963044144,-310.553784,0.00011572,2]
[360744167,1746963044157,-310.553784,0.00011572,2]
[360744168,1746963044167,-310.553784,0.00011572,2]
[360744169,1746963044179,-310.553784,0.00011572,2]
[360744170,1746963044189,-151.0,0.00011572,2]
[360744171,1746963044200,-151.0,0.00011572,2]